[Event "*** Titled Tuesday Blitz"]
[Site "Chess.com"]
[Date "2020.11.10"]
[Round "2"]
[White "Chamal_Gedgafov"]
[Black "lider34"]
[Result "0-1"]
[WhiteElo "2147"]
[BlackElo "2401"]
[TimeControl "180+1"]
[EndTime "10:20:21 PST"]
[Termination "lider34 won by resignation"]

1. d4 {[%clk 0:02:39.6]} 1... g6 {[%clk 0:02:58.2]} 2. c4 {[%clk 0:02:38.7]}
2... Bg7 {[%clk 0:02:57.9]} 3. e4 {[%clk 0:02:38.1]} 3... d6 {[%clk 0:02:57.1]}
4. Nc3 {[%clk 0:02:37.4]} 4... Nf6 {[%clk 0:02:57.5]} 5. Nf3 {[%clk 0:02:37.2]}
5... O-O {[%clk 0:02:56.9]} 6. Be2 {[%clk 0:02:37]} 6... e5 {[%clk 0:02:57]} 7.
d5 {[%clk 0:02:31.8]} 7... a5 {[%clk 0:02:56.2]} 8. Be3 {[%clk 0:02:31.6]} 8...
Ng4 {[%clk 0:02:55]} 9. Bg5 {[%clk 0:02:31.7]} 9... f6 {[%clk 0:02:54.6]} 10.
Bh4 {[%clk 0:02:29.7]} 10... Na6 {[%clk 0:02:51.9]} 11. Nd2 {[%clk 0:02:27.8]}
11... h5 {[%clk 0:02:50.9]} 12. Bxg4 {[%clk 0:02:23.6]} 12... Bxg4 {[%clk
0:02:31.2]} 13. f3 {[%clk 0:02:23]} 13... Bd7 {[%clk 0:02:28.9]} 14. O-O {[%clk
0:02:23.9]} 14... Nc5 {[%clk 0:02:23.6]} 15. b3 {[%clk 0:02:21.7]} 15... Qe8
{[%clk 0:02:23.1]} 16. Qc2 {[%clk 0:02:20.4]} 16... f5 {[%clk 0:02:17]} 17. a3
{[%clk 0:02:16.8]} 17... f4 {[%clk 0:01:46.6]} 18. b4 {[%clk 0:02:12.8]} 18...
axb4 {[%clk 0:01:46.5]} 19. axb4 {[%clk 0:02:13]} 19... Na6 {[%clk 0:01:44.9]}
20. Rab1 {[%clk 0:02:08.6]} 20... Bh6 {[%clk 0:01:40.7]} 21. Bf2 {[%clk
0:02:06.4]} 21... b6 {[%clk 0:01:38.5]} 22. Qd3 {[%clk 0:01:55.3]} 22... g5
{[%clk 0:01:38.1]} 23. Nb5 {[%clk 0:01:49.7]} 23... g4 {[%clk 0:01:36.2]} 24.
Bh4 {[%clk 0:01:44.1]} 24... Kh8 {[%clk 0:01:32.4]} 25. Rfc1 {[%clk 0:01:39.1]}
25... Rg8 {[%clk 0:01:29.3]} 26. Kh1 {[%clk 0:01:38.3]} 26... Qg6 {[%clk
0:01:15.3]} 27. Rg1 {[%clk 0:01:30.5]} 27... Bg5 {[%clk 0:01:08.9]} 28. Bf2
{[%clk 0:01:23.9]} 28... g3 {[%clk 0:01:04.1]} 29. hxg3 {[%clk 0:01:01.7]} 29...
fxg3 {[%clk 0:01:04]} 30. Be3 {[%clk 0:01:01.4]} 30... Bxe3 {[%clk 0:00:59]} 31.
Qxe3 {[%clk 0:01:02.3]} 31... Qf6 {[%clk 0:00:59.2]} 32. Rgc1 {[%clk 0:00:52.1]}
32... Qh4+ {[%clk 0:00:40.6]} 33. Kg1 {[%clk 0:00:51.9]} 33... Qh2+ {[%clk
0:00:40.5]} 34. Kf1 {[%clk 0:00:51.6]} 34... Qh1+ {[%clk 0:00:40.4]} 35. Ke2
{[%clk 0:00:51.2]} 35... Qxg2+ {[%clk 0:00:40.3]} 36. Kd3 {[%clk 0:00:51.8]}
36... Rg6 {[%clk 0:00:34.2]} 37. Rh1 {[%clk 0:00:50.3]} 37... Kg7 {[%clk
0:00:28.2]} 38. Kc3 {[%clk 0:00:49.5]} 38... Qf2 {[%clk 0:00:27.2]} 39. Qxf2
{[%clk 0:00:42]} 39... gxf2 {[%clk 0:00:27.1]} 40. Rh2 {[%clk 0:00:42]} 40...
Rh8 {[%clk 0:00:25]} 41. Rxf2 {[%clk 0:00:40.7]} 41... h4 {[%clk 0:00:25.2]} 42.
Rh1 {[%clk 0:00:40.2]} 42... h3 {[%clk 0:00:25.1]} 43. Rfh2 {[%clk 0:00:39.8]}
43... Rg2 {[%clk 0:00:23.8]} 44. Rxh3 {[%clk 0:00:24.4]} 44... Rxh3 {[%clk
0:00:22.6]} 45. Rxh3 {[%clk 0:00:25.3]} 45... Bxh3 {[%clk 0:00:22.3]} 0-1

[Event "*** Titled Tuesday Blitz"]
[Site "Chess.com"]
[Date "2020.11.10"]
[Round "2"]
[White "julinha97"]
[Black "guillembaches"]
[Result "1-0"]
[WhiteElo "2179"]
[BlackElo "2389"]
[TimeControl "180+1"]
[EndTime "10:20:22 PST"]
[Termination "julinha97 won by resignation"]

1. e4 {[%clk 0:03:00.9]} 1... c5 {[%clk 0:03:00.1]} 2. Nf3 {[%clk 0:03:00.7]}
2... d6 {[%clk 0:03:00.7]} 3. d4 {[%clk 0:03:00.5]} 3... cxd4 {[%clk 0:03:01.6]}
4. Nxd4 {[%clk 0:03:01.3]} 4... Nf6 {[%clk 0:03:01.8]} 5. Nc3 {[%clk 0:03:01.6]}
5... a6 {[%clk 0:03:02.4]} 6. a3 {[%clk 0:03:02.1]} 6... e5 {[%clk 0:03:02]} 7.
Nf5 {[%clk 0:03:02.1]} 7... d5 {[%clk 0:03:02.4]} 8. Bg5 {[%clk 0:03:00.3]} 8...
d4 {[%clk 0:03:02.3]} 9. Bxf6 {[%clk 0:02:59.5]} 9... gxf6 {[%clk 0:03:02]} 10.
Nb1 {[%clk 0:02:56]} 10... Bxf5 {[%clk 0:03:02]} 11. exf5 {[%clk 0:02:56.9]}
11... Qd5 {[%clk 0:02:58.4]} 12. Nd2 {[%clk 0:02:29.6]} 12... Bh6 {[%clk
0:02:46.6]} 13. f3 {[%clk 0:02:15]} 13... Be3 {[%clk 0:02:36.5]} 14. Ne4 {[%clk
0:02:10.2]} 14... Nd7 {[%clk 0:02:30]} 15. c4 {[%clk 0:01:52.3]} 15... Qc6
{[%clk 0:02:17.7]} 16. b4 {[%clk 0:01:45.4]} 16... O-O {[%clk 0:02:09.8]} 17.
Bd3 {[%clk 0:01:44]} 17... Kh8 {[%clk 0:02:06.3]} 18. Ke2 {[%clk 0:01:33.2]}
18... Rg8 {[%clk 0:02:04.2]} 19. g4 {[%clk 0:01:32.7]} 19... a5 {[%clk
0:01:58.2]} 20. h4 {[%clk 0:01:28.5]} 20... axb4 {[%clk 0:01:42.1]} 21. axb4
{[%clk 0:01:29.4]} 21... Qb6 {[%clk 0:01:41.4]} 22. Qb3 {[%clk 0:01:20.6]} 22...
Bf4 {[%clk 0:01:24]} 23. c5 {[%clk 0:01:15]} 23... Qc7 {[%clk 0:01:23.3]} 24.
Qxf7 {[%clk 0:01:12.2]} 24... Raf8 {[%clk 0:01:21.6]} 25. Qd5 {[%clk 0:00:54.7]}
25... Rd8 {[%clk 0:01:17.4]} 26. Ra7 {[%clk 0:00:50.1]} 26... Rb8 {[%clk
0:00:52.3]} 27. Nd6 {[%clk 0:00:49.8]} 27... e4 {[%clk 0:00:44]} 28. Bxe4 {[%clk
0:00:40.8]} 28... d3+ {[%clk 0:00:40.5]} 29. Bxd3 {[%clk 0:00:37.4]} 29... Bxd6
{[%clk 0:00:35.2]} 30. Qxd6 {[%clk 0:00:38.3]} 30... Rge8+ {[%clk 0:00:29.6]}
31. Be4 {[%clk 0:00:33.7]} 31... Qxd6 {[%clk 0:00:26.9]} 32. cxd6 {[%clk
0:00:34.6]} 32... Ne5 {[%clk 0:00:27.1]} 33. Rd1 {[%clk 0:00:29.2]} 33... Rbd8
{[%clk 0:00:27]} 34. Rxb7 {[%clk 0:00:27.1]} 34... Nxg4 {[%clk 0:00:27]} 35. d7
{[%clk 0:00:23.4]} 35... Re7 {[%clk 0:00:22.2]} 36. fxg4 {[%clk 0:00:18.3]}
36... Rxe4+ {[%clk 0:00:22]} 37. Kf3 {[%clk 0:00:19.2]} 37... Re7 {[%clk
0:00:22]} 38. Rc7 {[%clk 0:00:19.2]} 38... Kg7 {[%clk 0:00:21.9]} 39. b5 {[%clk
0:00:19.5]} 39... Re5 {[%clk 0:00:20.7]} 40. Rc8 {[%clk 0:00:17.7]} 40... Rxd7
{[%clk 0:00:19.9]} 41. Rxd7+ {[%clk 0:00:17.3]} 41... Kh6 {[%clk 0:00:20.5]} 42.
g5+ {[%clk 0:00:15.8]} 42... fxg5 {[%clk 0:00:20.3]} 43. hxg5+ {[%clk
0:00:16.7]} 43... Kxg5 {[%clk 0:00:20.9]} 44. Rg8+ {[%clk 0:00:16.7]} 44... Kxf5
{[%clk 0:00:20.6]} 45. Rf7+ {[%clk 0:00:17.3]} 45... Ke6 {[%clk 0:00:20.6]} 46.
Re8+ {[%clk 0:00:17.9]} 46... Kxf7 {[%clk 0:00:20.8]} 47. Rxe5 {[%clk
0:00:18.8]} 1-0

[Event "*** Titled Tuesday Blitz"]
[Site "Chess.com"]
[Date "2020.11.10"]
[Round "2"]
[White "SVV65"]
[Black "smshk35"]
[Result "0-1"]
[WhiteElo "2214"]
[BlackElo "2429"]
[TimeControl "180+1"]
[EndTime "10:20:23 PST"]
[Termination "smshk35 won by resignation"]

1. d4 {[%clk 0:03:00.9]} 1... Nf6 {[%clk 0:02:59.6]} 2. Nf3 {[%clk 0:03:01.8]}
2... g6 {[%clk 0:02:59.1]} 3. c4 {[%clk 0:03:02.7]} 3... Bg7 {[%clk 0:02:59.4]}
4. Nc3 {[%clk 0:03:03.6]} 4... c5 {[%clk 0:02:59.1]} 5. e4 {[%clk 0:03:04.5]}
5... cxd4 {[%clk 0:02:58]} 6. Nxd4 {[%clk 0:03:00.9]} 6... Nc6 {[%clk
0:02:55.7]} 7. Be3 {[%clk 0:02:59.9]} 7... O-O {[%clk 0:02:55.3]} 8. f3 {[%clk
0:03:00]} 8... d6 {[%clk 0:02:50.5]} 9. Be2 {[%clk 0:02:59.4]} 9... a5 {[%clk
0:02:45.8]} 10. Qd2 {[%clk 0:02:58.7]} 10... a4 {[%clk 0:02:45.3]} 11. Rc1
{[%clk 0:02:57.2]} 11... Qa5 {[%clk 0:02:43.7]} 12. O-O {[%clk 0:02:44.2]} 12...
Bd7 {[%clk 0:02:43.1]} 13. Rfd1 {[%clk 0:02:43.8]} 13... Rfc8 {[%clk 0:02:41.6]}
14. Ndb5 {[%clk 0:02:39.2]} 14... Ne5 {[%clk 0:02:37.4]} 15. b3 {[%clk
0:02:20.2]} 15... axb3 {[%clk 0:02:22]} 16. axb3 {[%clk 0:02:19.1]} 16... Qb4
{[%clk 0:02:19]} 17. Nd5 {[%clk 0:02:09.8]} 17... Nxd5 {[%clk 0:02:18.1]} 18.
exd5 {[%clk 0:01:52.5]} 18... Qxd2 {[%clk 0:01:59.9]} 19. Bxd2 {[%clk
0:01:50.7]} 19... Bxb5 {[%clk 0:01:54.3]} 20. cxb5 {[%clk 0:01:50.4]} 20... f5
{[%clk 0:01:45.9]} 21. Bg5 {[%clk 0:01:39.5]} 21... Kf7 {[%clk 0:01:42.7]} 22.
h3 {[%clk 0:01:32.1]} 22... h6 {[%clk 0:01:38.4]} 23. Be3 {[%clk 0:01:30]} 23...
g5 {[%clk 0:01:33.8]} 24. b6 {[%clk 0:01:29.9]} 24... f4 {[%clk 0:01:33]} 25.
Bf2 {[%clk 0:01:28.4]} 25... Nd7 {[%clk 0:01:28.2]} 26. Rc7 {[%clk 0:01:25.7]}
26... Rxc7 {[%clk 0:01:01.7]} 27. bxc7 {[%clk 0:01:25.5]} 27... Rc8 {[%clk
0:00:39.5]} 28. Rc1 {[%clk 0:01:25.8]} 28... Bb2 {[%clk 0:00:37.3]} 29. Rc4
{[%clk 0:01:18.7]} 29... Ba3 {[%clk 0:00:34]} 30. b4 {[%clk 0:01:12.3]} 30...
Ne5 {[%clk 0:00:29.5]} 31. Rc2 {[%clk 0:01:04.9]} 31... Bxb4 {[%clk 0:00:25]}
32. Ba7 {[%clk 0:01:04.8]} 32... Bc5+ {[%clk 0:00:18.9]} 33. Bxc5 {[%clk
0:00:47.9]} 33... Rxc7 {[%clk 0:00:19]} 34. Rd2 {[%clk 0:00:33.2]} 34... Rxc5
{[%clk 0:00:18.8]} 35. Kf2 {[%clk 0:00:32.9]} 35... Nc4 {[%clk 0:00:16.5]} 36.
Rd4 {[%clk 0:00:29.6]} 36... Ne3 {[%clk 0:00:16.5]} 37. Bd3 {[%clk 0:00:28]}
37... Kf6 {[%clk 0:00:16.3]} 38. g3 {[%clk 0:00:27]} 38... Rxd5 {[%clk 0:00:16]}
39. Rxd5 {[%clk 0:00:22]} 39... Nxd5 {[%clk 0:00:16.9]} 40. Be4 {[%clk
0:00:21.8]} 40... Ke5 {[%clk 0:00:16]} 41. gxf4+ {[%clk 0:00:20.5]} 41... gxf4
{[%clk 0:00:16.9]} 42. h4 {[%clk 0:00:19.9]} 42... b5 {[%clk 0:00:17.1]} 43. Ke2
{[%clk 0:00:18.4]} 43... Nc3+ {[%clk 0:00:16.5]} 44. Kd3 {[%clk 0:00:18.7]}
44... Nxe4 {[%clk 0:00:17.4]} 45. fxe4 {[%clk 0:00:18.7]} 45... b4 {[%clk
0:00:16.7]} 46. Kc4 {[%clk 0:00:18.6]} 46... f3 {[%clk 0:00:17.2]} 47. Kxb4
{[%clk 0:00:19.3]} 47... f2 {[%clk 0:00:17.7]} 48. Kc3 {[%clk 0:00:20]} 48...
f1=Q {[%clk 0:00:18.6]} 49. Kd2 {[%clk 0:00:19.9]} 49... Qf4+ {[%clk 0:00:18]}
0-1

[Event "*** Titled Tuesday Blitz"]
[Site "Chess.com"]
[Date "2020.11.10"]
[Round "2"]
[White "Ladislav1969"]
[Black "Slovak_fighter2000"]
[Result "0-1"]
[WhiteElo "2277"]
[BlackElo "2474"]
[TimeControl "180+1"]
[EndTime "10:20:24 PST"]
[Termination "Slovak_fighter2000 won by resignation"]

1. e4 {[%clk 0:03:00.9]} 1... e6 {[%clk 0:03:00]} 2. d4 {[%clk 0:03:00.8]} 2...
d5 {[%clk 0:03:00.2]} 3. e5 {[%clk 0:03:01.5]} 3... c5 {[%clk 0:03:00]} 4. c3
{[%clk 0:03:02.4]} 4... Nc6 {[%clk 0:03:00.5]} 5. Nf3 {[%clk 0:03:03.3]} 5...
Qb6 {[%clk 0:03:00.7]} 6. a3 {[%clk 0:03:03.5]} 6... c4 {[%clk 0:03:00.7]} 7.
Nbd2 {[%clk 0:03:03.6]} 7... f6 {[%clk 0:03:01.1]} 8. exf6 {[%clk 0:02:58.7]}
8... Nxf6 {[%clk 0:03:02]} 9. Be2 {[%clk 0:02:57.4]} 9... Bd6 {[%clk 0:03:02.3]}
10. O-O {[%clk 0:02:55]} 10... O-O {[%clk 0:03:01.9]} 11. Nh4 {[%clk 0:02:53]}
11... e5 {[%clk 0:02:49.8]} 12. dxe5 {[%clk 0:02:49.2]} 12... Nxe5 {[%clk
0:02:50.7]} 13. Ndf3 {[%clk 0:02:45]} 13... Nxf3+ {[%clk 0:02:41]} 14. Bxf3
{[%clk 0:02:40.8]} 14... Be6 {[%clk 0:02:40]} 15. Re1 {[%clk 0:02:38.5]} 15...
Ne4 {[%clk 0:02:29]} 16. Be3 {[%clk 0:02:33.4]} 16... Qc7 {[%clk 0:02:17.2]} 17.
g3 {[%clk 0:02:25.2]} 17... Rad8 {[%clk 0:02:11.2]} 18. Bxe4 {[%clk 0:02:11.8]}
18... dxe4 {[%clk 0:02:10.7]} 19. Qc2 {[%clk 0:02:11.2]} 19... Bd5 {[%clk
0:02:03.5]} 20. Rad1 {[%clk 0:02:10.2]} 20... Bc6 {[%clk 0:02:04]} 21. Rd4
{[%clk 0:02:03.7]} 21... Be7 {[%clk 0:01:47.4]} 22. Ng2 {[%clk 0:02:00]} 22...
Rxd4 {[%clk 0:01:43.8]} 23. Bxd4 {[%clk 0:01:55.8]} 23... b5 {[%clk 0:01:37.4]}
24. Qe2 {[%clk 0:01:49.6]} 24... Qd7 {[%clk 0:01:33.4]} 25. Rd1 {[%clk
0:01:41.1]} 25... Qf5 {[%clk 0:01:23.1]} 26. Ne3 {[%clk 0:01:40.3]} 26... Qf3
{[%clk 0:01:13.6]} 27. Qxf3 {[%clk 0:01:35.8]} 27... exf3 {[%clk 0:01:14.5]} 28.
Bxa7 {[%clk 0:01:35.2]} 28... h5 {[%clk 0:01:12.2]} 29. h4 {[%clk 0:01:27.6]}
29... Re8 {[%clk 0:01:04.9]} 30. Bb6 {[%clk 0:01:19]} 30... Bf8 {[%clk
0:01:02.4]} 31. Bc7 {[%clk 0:01:17.7]} 31... g6 {[%clk 0:00:56.9]} 32. Bf4
{[%clk 0:01:17.2]} 32... Be4 {[%clk 0:00:54.9]} 33. Rd7 {[%clk 0:01:13]} 33...
Bd3 {[%clk 0:00:47.5]} 34. Kh2 {[%clk 0:01:10.4]} 34... Bc5 {[%clk 0:00:39.6]}
35. Rd5 {[%clk 0:01:08.1]} 35... Bxe3 {[%clk 0:00:38.7]} 36. Bxe3 {[%clk
0:01:07.9]} 36... Rxe3 {[%clk 0:00:37.9]} 37. Rxb5 {[%clk 0:00:40.7]} 37... Re2
{[%clk 0:00:36.7]} 38. Rb8+ {[%clk 0:00:34.5]} 38... Kf7 {[%clk 0:00:36.4]} 39.
Rb7+ {[%clk 0:00:33.8]} 39... Kf6 {[%clk 0:00:36.7]} 40. Rb6+ {[%clk 0:00:33]}
40... Ke7 {[%clk 0:00:35.5]} 41. Kg1 {[%clk 0:00:30.8]} 41... Re1+ {[%clk
0:00:35.2]} 42. Kh2 {[%clk 0:00:31.1]} 42... Rf1 {[%clk 0:00:36.1]} 43. g4
{[%clk 0:00:26]} 43... Rxf2+ {[%clk 0:00:36.2]} 44. Kg3 {[%clk 0:00:26.3]} 44...
Rg2+ {[%clk 0:00:36.5]} 45. Kxf3 {[%clk 0:00:25.9]} 45... Rxg4 {[%clk
0:00:36.6]} 46. a4 {[%clk 0:00:24.8]} 46... Rxh4 {[%clk 0:00:33.9]} 47. a5
{[%clk 0:00:24.8]} 47... Rh1 {[%clk 0:00:33.4]} 48. a6 {[%clk 0:00:22.3]} 48...
Ra1 {[%clk 0:00:33.9]} 49. Rb7+ {[%clk 0:00:19.9]} 49... Kd6 {[%clk 0:00:34]}
50. a7 {[%clk 0:00:20.2]} 50... Kc6 {[%clk 0:00:33.7]} 51. Rb8 {[%clk
0:00:07.2]} 51... Rxa7 {[%clk 0:00:32.7]} 0-1

[Event "*** Titled Tuesday Blitz"]
[Site "Chess.com"]
[Date "2020.11.10"]
[Round "2"]
[White "Basyak97"]
[Black "Quiet_Desperation"]
[Result "0-1"]
[WhiteElo "2333"]
[BlackElo "1731"]
[TimeControl "180+1"]
[EndTime "10:20:28 PST"]
[Termination "Quiet_Desperation won on time"]

1. d4 {[%clk 0:02:55.3]} 1... d5 {[%clk 0:03:00.1]} 2. c4 {[%clk 0:02:55.3]}
2... c6 {[%clk 0:02:58.6]} 3. Nc3 {[%clk 0:02:55.6]} 3... e5 {[%clk 0:02:41.9]}
4. cxd5 {[%clk 0:02:51.8]} 4... cxd5 {[%clk 0:02:40.9]} 5. e4 {[%clk 0:02:51.1]}
5... dxe4 {[%clk 0:02:03.7]} 6. d5 {[%clk 0:02:47.5]} 6... Nf6 {[%clk
0:02:02.3]} 7. Bb5+ {[%clk 0:02:38.6]} 7... Nbd7 {[%clk 0:01:55]} 8. Nge2 {[%clk
0:02:33.4]} 8... a6 {[%clk 0:01:55.3]} 9. Ba4 {[%clk 0:02:32.8]} 9... b5 {[%clk
0:01:54.4]} 10. Bc2 {[%clk 0:02:33.3]} 10... Nc5 {[%clk 0:01:49.6]} 11. Ng3
{[%clk 0:02:31.1]} 11... Nd3+ {[%clk 0:01:46.3]} 12. Bxd3 {[%clk 0:02:30.3]}
12... exd3 {[%clk 0:01:46.7]} 13. Qxd3 {[%clk 0:02:31.2]} 13... b4 {[%clk
0:01:30]} 14. Nce4 {[%clk 0:02:26.4]} 14... Nxe4 {[%clk 0:01:30.2]} 15. Nxe4
{[%clk 0:02:25.4]} 15... f5 {[%clk 0:01:30.1]} 16. Ng5 {[%clk 0:01:45.9]} 16...
Be7 {[%clk 0:01:25.9]} 17. f4 {[%clk 0:00:51]} 17... exf4 {[%clk 0:01:13.5]} 18.
Nf3 {[%clk 0:00:49.8]} 18... O-O {[%clk 0:01:13.1]} 19. Bxf4 {[%clk 0:00:49.3]}
19... Bd7 {[%clk 0:01:04]} 20. Nd4 {[%clk 0:00:44.1]} 20... Bc5 {[%clk
0:00:58.8]} 21. O-O-O {[%clk 0:00:41.2]} 21... Bxd4 {[%clk 0:00:45.3]} 22. Qxd4
{[%clk 0:00:41.2]} 22... b3 {[%clk 0:00:44.1]} 23. a3 {[%clk 0:00:40.1]} 23...
Rc8+ {[%clk 0:00:39.6]} 24. Kb1 {[%clk 0:00:40.3]} 24... Rc2 {[%clk 0:00:37.4]}
25. Rhe1 {[%clk 0:00:39.1]} 25... Rxg2 {[%clk 0:00:32.2]} 26. Rg1 {[%clk
0:00:38.8]} 26... Rxg1 {[%clk 0:00:27.1]} 27. Rxg1 {[%clk 0:00:39.7]} 27... Qe7
{[%clk 0:00:24.6]} 28. Be5 {[%clk 0:00:35]} 28... Re8 {[%clk 0:00:19.6]} 29. Bg3
{[%clk 0:00:24.1]} 29... Qe4+ {[%clk 0:00:16.4]} 30. Qxe4 {[%clk 0:00:24.4]}
30... Rxe4 {[%clk 0:00:15.4]} 31. d6 {[%clk 0:00:23.2]} 31... f4 {[%clk
0:00:13.8]} 32. Be1 {[%clk 0:00:21.8]} 32... Rd4 {[%clk 0:00:12]} 33. Rxg7+
{[%clk 0:00:19.2]} 33... Kf8 {[%clk 0:00:08.1]} 34. Kc1 {[%clk 0:00:13.2]} 34...
Rc4+ {[%clk 0:00:04.3]} 35. Bc3 {[%clk 0:00:12.5]} 35... Rxc3+ {[%clk
0:00:04.2]} 36. bxc3 {[%clk 0:00:13.4]} 36... Kxg7 {[%clk 0:00:04.8]} 37. Kb2
{[%clk 0:00:11.5]} 37... Kf6 {[%clk 0:00:03.9]} 38. c4 {[%clk 0:00:11.2]} 38...
Ke6 {[%clk 0:00:04.8]} 39. c5 {[%clk 0:00:11.2]} 39... Kd5 {[%clk 0:00:05.1]}
40. Kxb3 {[%clk 0:00:12.1]} 40... Kxc5 {[%clk 0:00:05.4]} 0-1

[Event "*** Titled Tuesday Blitz"]
[Site "Chess.com"]
[Date "2020.11.10"]
[Round "2"]
[White "paulrusan"]
[Black "mc4chess"]
[Result "1-0"]
[WhiteElo "2219"]
[BlackElo "2392"]
[TimeControl "180+1"]
[EndTime "10:20:29 PST"]
[Termination "paulrusan won on time"]

1. e4 {[%clk 0:03:00.9]} 1... e5 {[%clk 0:02:57.2]} 2. Nf3 {[%clk 0:03:00.6]}
2... Nc6 {[%clk 0:02:57.6]} 3. Bc4 {[%clk 0:03:00.5]} 3... Bc5 {[%clk
0:02:56.6]} 4. b4 {[%clk 0:02:59.9]} 4... Bxb4 {[%clk 0:02:49.9]} 5. c3 {[%clk
0:03:00]} 5... Bc5 {[%clk 0:02:49.2]} 6. d4 {[%clk 0:02:59.2]} 6... exd4 {[%clk
0:02:48.6]} 7. O-O {[%clk 0:02:59.3]} 7... Nge7 {[%clk 0:02:44.3]} 8. Ng5 {[%clk
0:02:51.8]} 8... d5 {[%clk 0:02:37.8]} 9. exd5 {[%clk 0:02:48]} 9... Nxd5 {[%clk
0:02:34.5]} 10. Re1+ {[%clk 0:02:22.6]} 10... Be7 {[%clk 0:02:30.3]} 11. Nxf7
{[%clk 0:02:17.7]} 11... Kxf7 {[%clk 0:02:15.6]} 12. Qh5+ {[%clk 0:02:00.7]}
12... g6 {[%clk 0:02:11.2]} 13. Bxd5+ {[%clk 0:01:57.7]} 13... Ke8 {[%clk
0:02:03.2]} 14. Bxc6+ {[%clk 0:01:30.8]} 14... bxc6 {[%clk 0:02:04.1]} 15. Qh4
{[%clk 0:01:22.7]} 15... Kf7 {[%clk 0:01:51]} 16. Qe4 {[%clk 0:01:02.8]} 16...
Bf5 {[%clk 0:01:32]} 17. Qxc6 {[%clk 0:01:01.1]} 17... Rb8 {[%clk 0:01:31.9]}
18. Bf4 {[%clk 0:00:47.9]} 18... Bd6 {[%clk 0:01:11.4]} 19. Qd5+ {[%clk
0:00:41.6]} 19... Kg7 {[%clk 0:00:55.7]} 20. Qxd4+ {[%clk 0:00:41.6]} 20... Kf7
{[%clk 0:00:56.2]} 21. Nd2 {[%clk 0:00:38.9]} 21... Qf6 {[%clk 0:00:23.2]} 22.
Qxf6+ {[%clk 0:00:37.9]} 22... Kxf6 {[%clk 0:00:23.4]} 23. Bxd6 {[%clk
0:00:38.4]} 23... cxd6 {[%clk 0:00:24.3]} 24. Nc4 {[%clk 0:00:38.9]} 24... Rhc8
{[%clk 0:00:21.5]} 25. Nxd6 {[%clk 0:00:37.2]} 25... Rxc3 {[%clk 0:00:21.3]} 26.
g4 {[%clk 0:00:33.7]} 26... Bd3 {[%clk 0:00:15.4]} 27. Rad1 {[%clk 0:00:30.6]}
27... Rb6 {[%clk 0:00:15.5]} 28. Ne4+ {[%clk 0:00:30.6]} 28... Bxe4 {[%clk
0:00:15.5]} 29. Rxe4 {[%clk 0:00:31.3]} 29... Rc2 {[%clk 0:00:16.1]} 30. Rd7
{[%clk 0:00:27.9]} 30... Rxa2 {[%clk 0:00:15]} 31. Rxh7 {[%clk 0:00:25.4]} 31...
Rb1+ {[%clk 0:00:15]} 32. Kg2 {[%clk 0:00:25.2]} 32... Rbb2 {[%clk 0:00:15.9]}
33. Rf4+ {[%clk 0:00:25.1]} 33... Kg5 {[%clk 0:00:16.5]} 34. Kg3 {[%clk
0:00:24.6]} 34... Ra3+ {[%clk 0:00:06.1]} 35. f3 {[%clk 0:00:24.7]} 35... Rg2+
{[%clk 0:00:04.8]} 36. Kxg2 {[%clk 0:00:23.5]} 36... Kxf4 {[%clk 0:00:05.7]} 37.
Rf7+ {[%clk 0:00:23]} 37... Kg5 {[%clk 0:00:05.8]} 38. Kg3 {[%clk 0:00:22.8]}
38... Kh6 {[%clk 0:00:04.8]} 39. h4 {[%clk 0:00:22.5]} 39... g5 {[%clk
0:00:01.1]} 40. Rf6+ {[%clk 0:00:21.5]} 40... Kg7 {[%clk 0:00:02]} 41. hxg5
{[%clk 0:00:21.8]} 41... Ra1 {[%clk 0:00:02.8]} 42. Kf4 {[%clk 0:00:18.6]} 42...
a5 {[%clk 0:00:03.7]} 43. Ra6 {[%clk 0:00:17.9]} 43... a4 {[%clk 0:00:04.6]} 44.
Kf5 {[%clk 0:00:17.2]} 44... a3 {[%clk 0:00:04.6]} 45. Ra7+ {[%clk 0:00:16.6]}
45... Kf8 {[%clk 0:00:05]} 46. f4 {[%clk 0:00:16.8]} 46... a2 {[%clk 0:00:05.3]}
47. g6 {[%clk 0:00:16.9]} 1-0

[Event "*** Titled Tuesday Blitz"]
[Site "Chess.com"]
[Date "2020.11.10"]
[Round "2"]
[White "Funo09"]
[Black "szachuspl"]
[Result "1-0"]
[WhiteElo "2818"]
[BlackElo "2538"]
[TimeControl "180+1"]
[EndTime "10:20:32 PST"]
[Termination "Funo09 won on time"]

1. e4 {[%clk 0:03:00.9]} 1... c5 {[%clk 0:02:59.3]} 2. Nc3 {[%clk 0:03:00.1]}
2... Nc6 {[%clk 0:02:58.8]} 3. Bb5 {[%clk 0:03:00.6]} 3... e6 {[%clk 0:02:54.3]}
4. Bxc6 {[%clk 0:03:00.3]} 4... bxc6 {[%clk 0:02:51.7]} 5. f4 {[%clk 0:03:00.3]}
5... d5 {[%clk 0:02:52]} 6. d3 {[%clk 0:02:59]} 6... Ba6 {[%clk 0:02:51.6]} 7.
Nf3 {[%clk 0:02:57]} 7... c4 {[%clk 0:02:50.8]} 8. d4 {[%clk 0:02:55.9]} 8...
Bb4 {[%clk 0:02:43.9]} 9. O-O {[%clk 0:02:52.1]} 9... Ne7 {[%clk 0:02:41.2]} 10.
e5 {[%clk 0:02:41]} 10... c5 {[%clk 0:02:40.3]} 11. Be3 {[%clk 0:02:38.7]} 11...
cxd4 {[%clk 0:02:40.5]} 12. Nxd4 {[%clk 0:02:38.3]} 12... Rc8 {[%clk 0:02:35.6]}
13. f5 {[%clk 0:02:34]} 13... Bc5 {[%clk 0:02:07.3]} 14. fxe6 {[%clk 0:02:24.4]}
14... fxe6 {[%clk 0:02:07]} 15. Qg4 {[%clk 0:02:01]} 15... Bxd4 {[%clk
0:01:58.7]} 16. Bxd4 {[%clk 0:01:58.1]} 16... Nf5 {[%clk 0:01:57.8]} 17. Rxf5
{[%clk 0:01:52.2]} 17... exf5 {[%clk 0:01:57.9]} 18. Qxg7 {[%clk 0:01:51.1]}
18... Rf8 {[%clk 0:01:55.2]} 19. Qxa7 {[%clk 0:01:42.9]} 19... Rc6 {[%clk
0:01:47.1]} 20. Qxh7 {[%clk 0:01:37.3]} 20... Qd7 {[%clk 0:01:37.4]} 21. Qxd7+
{[%clk 0:01:31.9]} 21... Kxd7 {[%clk 0:01:37.3]} 22. Nxd5 {[%clk 0:01:32.7]}
22... Rg6 {[%clk 0:01:32]} 23. Rd1 {[%clk 0:01:26.9]} 23... Bb7 {[%clk
0:00:29.2]} 24. Nf4 {[%clk 0:01:23.4]} 24... Rg4 {[%clk 0:00:27.1]} 25. h3
{[%clk 0:01:09.2]} 25... Rxf4 {[%clk 0:00:23]} 26. Be3+ {[%clk 0:01:08.9]} 26...
Ke6 {[%clk 0:00:21.9]} 27. Bxf4 {[%clk 0:01:08.7]} 27... Bd5 {[%clk 0:00:20.9]}
28. h4 {[%clk 0:01:00.2]} 28... Ra8 {[%clk 0:00:20]} 29. Ra1 {[%clk 0:00:49.6]}
29... Rb8 {[%clk 0:00:19.6]} 30. b3 {[%clk 0:00:48.8]} 30... c3 {[%clk
0:00:18.6]} 31. a3 {[%clk 0:00:35.2]} 31... Rg8 {[%clk 0:00:16.5]} 32. g3 {[%clk
0:00:34.7]} 32... Rd8 {[%clk 0:00:09.8]} 33. Kf2 {[%clk 0:00:31.3]} 33... Be4
{[%clk 0:00:09.6]} 34. Rc1 {[%clk 0:00:31.7]} 34... Ra8 {[%clk 0:00:05.9]} 35.
a4 {[%clk 0:00:31.7]} 35... Ra7 {[%clk 0:00:06.5]} 36. h5 {[%clk 0:00:31.3]}
36... Rh7 {[%clk 0:00:05.5]} 37. h6 {[%clk 0:00:31.5]} 37... Rd7 {[%clk
0:00:05.4]} 38. Ke2 {[%clk 0:00:30.3]} 38... Kf7 {[%clk 0:00:03.9]} 39. a5
{[%clk 0:00:17.2]} 39... Kg6 {[%clk 0:00:03.6]} 40. Be3 {[%clk 0:00:15.9]} 40...
Rd5 {[%clk 0:00:03.1]} 41. a6 {[%clk 0:00:11.7]} 41... Rxe5 {[%clk 0:00:03.3]}
42. Ra1 {[%clk 0:00:08.1]} 1-0